bitfinex/quotes_BTCUSD_20250616
["timestamp","ask_amount","ask_price","bid_price","bid_amount"]
[1750099884110,0.01849829,108110.0,108100.0,0.29348427]
[1750099884332,0.16881829,108110.0,108100.0,0.29348427]
[1750099884574,0.1780677,108110.0,108100.0,0.29348427]
[1750099884797,0.16881829,108110.0,108100.0,0.29748427]
[1750099885023,0.1780677,108110.0,108100.0,0.29748427]
[1750099885270,0.16881829,108110.0,108100.0,0.29748427]
[1750099885493,0.1780677,108110.0,108100.0,0.29748427]
[1750099885708,0.1780677,108110.0,108100.0,0.29948427]
[1750099885709,0.18731719,108110.0,108100.0,0.29948427]
[1750099885924,0.1780677,108110.0,108100.0,0.29948427]
[1750099886139,0.16881829,108110.0,108100.0,0.29948427]
[1750099886354,0.1780677,108110.0,108100.0,0.29948427]
[1750099888164,0.16881829,108110.0,108100.0,0.29948427]
[1750099888379,0.1780677,108110.0,108100.0,0.29948427]
[1750099888590,0.01849667,108120.0,108110.0,0.25319429]
[1750099888802,0.17806574,108120.0,108110.0,0.25319429]
[1750099889869,0.17806574,108120.0,108110.0,0.24594523]
[1750099890076,0.18731463,108120.0,108110.0,0.24594523]
[1750099890387,0.03699463,108120.0,108110.0,0.24594523]
[1750099890605,0.17806574,108120.0,108110.0,0.24594523]
[1750099891888,0.18256574,108120.0,108110.0,0.24594523]
[1750099892434,0.19181463,108120.0,108110.0,0.24594523]
[1750099892639,0.18256574,108120.0,108110.0,0.24594523]
[1750099893057,0.37679428,108120.0,108110.0,0.236696]
[1750099893263,0.37679428,108120.0,108110.0,0.24594541]
[1750099893674,0.37679428,108120.0,108110.0,0.25519473]
[1750099894093,0.19181463,108120.0,108110.0,0.25519473]
[1750099894299,0.17806574,108120.0,108110.0,0.26444396]
[1750099894705,0.17806574,108120.0,108110.0,0.236696]
[1750099894916,0.16881693,108120.0,108110.0,0.24594523]
[1750099895124,0.18731446,108120.0,108110.0,0.24594523]
[1750099895599,0.17806565,108120.0,108110.0,0.24594523]
[1750099896405,0.18731446,108120.0,108110.0,0.24594523]
[1750099896866,0.17806565,108120.0,108110.0,0.24594523]
[1750099897079,0.3630453,108120.0,108110.0,0.236696]
[1750099897272,0.87805523,108120.0,108110.0,0.27541617]
[1750099897519,0.8595577,108120.0,108110.0,0.21819676]
[1750099897734,0.8595577,108120.0,108110.0,0.21144659]
[1750099897947,0.8595577,108120.0,108110.0,0.25016659]
[1750099898167,0.8595577,108120.0,108110.0,0.25941634]
[1750099898391,0.8595577,108120.0,108110.0,0.268666]
[1750099898848,0.8595577,108120.0,108110.0,0.27791558]
[1750099899297,0.8595577,108120.0,108110.0,0.30296507]
[1750099899298,0.86880651,108120.0,108110.0,0.30296507]
[1750099899739,0.86880651,108120.0,108110.0,0.30296465]
[1750099900171,0.86880651,108120.0,108110.0,0.29371524]
[1750099900384,0.86880651,108120.0,108110.0,0.28446575]
[1750099903011,0.86430651,108120.0,108110.0,0.29371524]
[1750099903252,0.86880651,108120.0,108110.0,0.28446575]
[1750099903481,0.86880651,108120.0,108110.0,0.29371524]
[1750099903690,0.16881684,108120.0,108110.0,0.30296447]
[1750099903921,0.02774565,108120.0,108110.0,0.30296447]
[1750099904142,0.02774556,108120.0,108110.0,0.30296447]
[1750099904329,0.03699437,108120.0,108110.0,0.30296447]
[1750099904566,0.01849684,108120.0,108110.0,0.30296447]
[1750099904997,0.03699429,108120.0,108110.0,0.30296447]
[1750099905218,0.02774548,108120.0,108110.0,0.30296447]
[1750099905451,0.62802705,108130.0,108120.0,0.20347701]
[1750099905704,0.01849359,108140.0,108130.0,0.24400588]
[1750099905933,0.31815404,108150.0,108140.0,0.20343972]
[1750099906153,1.33273209,108150.0,108140.0,0.28270665]
[1750099906371,0.98348636,108150.0,108140.0,0.27345981]
[1750099906587,1.32348636,108150.0,108140.0,0.27345989]
[1750099906804,1.32348636,108150.0,108140.0,0.28270699]
[1750099907041,1.4011437,108150.0,108140.0,0.25496544]
[1750099907260,1.2508237,108150.0,108140.0,0.23338412]
[1750099907469,1.4011437,108150.0,108140.0,0.23338412]
[1750099907678,1.4011437,108150.0,108140.0,0.2426313]
[1750099908109,1.39189737,108150.0,108140.0,0.23338412]
[1750099908353,1.39589737,108150.0,108140.0,0.23338412]
[1750099908558,1.39889737,108150.0,108140.0,0.22413685]
[1750099908990,1.24857737,108150.0,108140.0,0.23338403]
[1750099909196,1.15242815,108150.0,108140.0,0.24263113]
[1750099910001,1.15242815,108150.0,108140.0,0.23338403]
[1750099910273,1.17092072,108150.0,108140.0,0.27403104]
[1750099911150,1.17092072,108150.0,108140.0,0.29252481]
[1750099911700,1.17092072,108150.0,108140.0,0.26478403]
[1750099912192,1.17092072,108150.0,108140.0,0.27403113]
[1750099912854,1.26706994,108150.0,108140.0,0.25553685]
[1750099913071,1.26706994,108150.0,108140.0,0.26478412]
[1750099914864,1.17092072,108150.0,108140.0,0.27403122]
[1750099915875,1.17092072,108150.0,108140.0,0.2740313]
[1750099917074,1.31195456,108150.0,108140.0,0.25553685]
[1750099917299,1.31195456,108150.0,108140.0,0.07059141]
[1750099917534,1.40810378,108150.0,108140.0,0.00047141]
[1750099917777,1.97420268,108150.0,108140.0,0.00047141]
[1750099917988,1.97420268,108150.0,108140.0,0.03919141]
[1750099917989,7.04634186,108150.0,108140.0,0.03919141]
[1750099918198,7.07412986,108150.0,108140.0,0.03919141]
[1750099920148,7.07412986,108150.0,108140.0,0.00047141]
[1750099920149,7.10178678,108150.0,108140.0,0.00047141]
[1750099920363,7.10178678,108150.0,108140.0,0.03919141]
[1750099920576,7.10178678,108150.0,108140.0,0.00047141]
[1750099920800,7.10178678,108150.0,108140.0,0.03919141]
[1750099922807,7.07412986,108150.0,108140.0,0.03919141]
[1750099923025,7.10178678,108150.0,108140.0,0.03919141]
[1750099923240,7.07412986,108150.0,108140.0,0.03919141]
[1750099924237,6.97798064,108150.0,108140.0,0.03919141]
[1750099925823,6.94618064,108150.0,108140.0,0.03919141]
[1750099926527,6.96148064,108150.0,108140.0,0.03919141]
[1750099927026,6.96148064,108150.0,108140.0,0.00047141]
[1750099927245,6.97728064,108150.0,108140.0,0.03919141]
[1750099927502,7.07342986,108150.0,108140.0,0.03919141]
[1750099928208,0.86710174,108150.0,108140.0,0.07079141]
[1750099928422,1.00016256,108150.0,108140.0,0.07079141]
[1750099928639,1.35470341,108150.0,108140.0,0.07079141]
[1750099930266,1.35470341,108150.0,108140.0,0.25573685]
[1750099931091,1.36394957,108150.0,108140.0,0.27423096]
[1750099931527,0.49969651,108150.0,108140.0,0.2834778]
[1750099931782,0.13102976,108150.0,108140.0,0.29272447]
[1750099932021,0.78252545,108150.0,108140.0,0.29272447]
[1750099932227,0.80101716,108150.0,108140.0,0.29272447]
[1750099932442,1.13177118,108150.0,108140.0,0.29272447]
[1750099932656,0.80101708,108150.0,108140.0,0.29272447]
[1750099933099,1.14101708,108150.0,108140.0,0.29272447]
[1750099933705,1.15026306,108150.0,108140.0,0.29272447]
[1750099933929,1.12256545,108150.0,108140.0,0.29272447]
[1750099934433,1.13181126,108150.0,108140.0,0.29272447]
[1750099935116,1.12256545,108150.0,108140.0,0.29272447]
[1750099935798,1.13181126,108150.0,108140.0,0.29272447]
[1750099936427,1.13669126,108150.0,108140.0,0.29272447]
[1750099936841,1.13669118,108150.0,108140.0,0.29272447]
[1750099937259,1.13665118,108150.0,108140.0,0.29272447]
[1750099938098,1.14589699,108150.0,108140.0,0.29272447]
[1750099938303,1.20220441,108150.0,108140.0,0.29272447]
[1750099938719,1.20220432,108150.0,108140.0,0.29272447]
[1750099938923,1.21145048,108150.0,108140.0,0.29272447]
[1750099939136,1.14589699,108150.0,108140.0,0.29272447]
[1750099939399,1.15514297,108150.0,108140.0,0.29272447]
[1750099940275,1.16438913,108150.0,108140.0,0.29272447]
[1750099940545,1.15514297,108150.0,108140.0,0.29272447]
[1750099941864,1.16438904,108150.0,108140.0,0.29272447]
[1750099942184,1.15514297,108150.0,108140.0,0.29272447]
[1750099942399,1.14589699,108150.0,108140.0,0.29272447]
[1750099943040,1.15514297,108150.0,108140.0,0.29272447]
[1750099943467,1.16438913,108150.0,108140.0,0.29272447]
[1750099943680,0.63538492,108150.0,108140.0,0.29272447]
[1750099943893,1.16438904,108150.0,108140.0,0.29272447]
[1750099944438,1.15514297,108150.0,108140.0,0.29272447]
[1750099944877,1.13665118,108150.0,108140.0,0.29272447]
[1750099945095,1.14589699,108150.0,108140.0,0.29272447]
[1750099945762,0.44324176,108150.0,108140.0,0.29272447]
[1750099945991,0.007,108150.0,108140.0,0.81248252]
[1750099946874,1.028526,108170.0,108160.0,0.21264689]
[1750099947086,1.13401195,108170.0,108160.0,0.24454689]
[1750099948153,1.12976776,108170.0,108160.0,0.24454689]
[1750099948795,1.13901204,108170.0,108160.0,0.24454689]
[1750099949007,1.14389204,108170.0,108160.0,0.28326689]
[1750099949263,1.1583617,108170.0,108160.0,0.28326689]
[1750099949477,1.16760606,108170.0,108160.0,0.28326689]
[1750099949688,1.17685059,108170.0,108160.0,0.28326689]
[1750099950118,1.36174473,108170.0,108160.0,0.24454689]
[1750099950344,1.43940634,108170.0,108160.0,0.2328768]
[1750099950570,0.02302,108160.0,108150.0,0.24405087]
[1750099950786,0.63901981,108160.0,108150.0,0.28277087]
[1750099951001,0.63901981,108160.0,108150.0,0.29201728]
[1750099951211,0.6575105,108160.0,108150.0,0.29201728]
[1750099951417,0.63901981,108160.0,108150.0,0.29201728]
[1750099951853,0.63748981,108160.0,108150.0,0.29201728]
[1750099952072,0.11773167,108160.0,108150.0,0.29201728]
[1750099952279,0.63748972,108160.0,108150.0,0.29201728]
[1750099952690,0.64148964,108160.0,108150.0,0.29201728]
[1750099953136,0.65073477,108160.0,108150.0,0.29201728]
[1750099953558,0.67375546,108160.0,108150.0,0.25329728]
[1750099953769,0.67375546,108160.0,108150.0,0.29201728]
[1750099953979,0.65526477,108160.0,108150.0,0.25329728]
[1750099954189,0.65526477,108160.0,108150.0,0.29201728]
[1750099954419,0.66451007,108160.0,108150.0,0.29201728]
[1750099955555,0.65526477,108160.0,108150.0,0.29201728]
[1750099955790,0.66451016,108160.0,108150.0,0.25329728]
[1750099956011,0.66451016,108160.0,108150.0,0.29201728]
[1750099956487,0.66450999,108160.0,108150.0,0.29201728]
[1750099956742,0.85866662,108160.0,108150.0,0.24405147]
[1750099957094,0.84017747,108160.0,108150.0,0.22364834]
[1750099957292,0.84017747,108160.0,108150.0,0.24214074]
[1750099957550,0.84017747,108160.0,108150.0,0.24214083]
[1750099958065,0.84017747,108160.0,108150.0,0.2513869]
[1750099958340,0.83093208,108160.0,108150.0,0.22364834]
[1750099958615,1.26389027,108160.0,108150.0,0.23289475]
[1750099958872,1.26389027,108160.0,108150.0,0.24214108]
[1750099959417,1.26389027,108160.0,108150.0,0.25138732]
[1750099960169,1.27843112,108160.0,108150.0,0.25138732]
[1750099960390,1.1822819,108160.0,108150.0,0.25138732]
[1750099960835,1.1822819,108160.0,108150.0,0.26063348]
[1750099960836,1.1669819,108160.0,108150.0,0.26063348]
[1750099961321,1.1669819,108160.0,108150.0,0.26987955]
[1750099965037,1.1669819,108160.0,108150.0,0.26987912]
[1750099965258,0.64722385,108160.0,108150.0,0.26987912]
[1750099965483,1.1669819,108160.0,108150.0,0.26987912]
[1750099966395,1.34499798,108160.0,108150.0,0.2698786]
[1750099966623,1.34499798,108160.0,108150.0,0.24214074]
[1750099967900,1.41552408,108160.0,108150.0,0.24214074]
[1750099968462,1.34499798,108160.0,108150.0,0.24214074]
[1750099968936,1.34499798,108160.0,108150.0,0.26063279]
[1750099970340,1.34499798,108160.0,108150.0,0.25138681]
[1750099971693,1.34499798,108160.0,108150.0,0.26063279]
[1750099971913,1.34499798,108160.0,108150.0,0.26987869]
[1750099972444,1.34499798,108160.0,108150.0,0.25138681]
[1750099972943,1.34499798,108160.0,108150.0,0.26063279]
[1750099973151,1.34499798,108160.0,108150.0,0.26987869]
[1750099973699,1.34499798,108160.0,108150.0,0.28527869]
[1750099973912,1.16008674,108160.0,108150.0,0.30157826]
[1750099974123,1.15084118,108160.0,108150.0,0.30157826]
[1750099974333,1.34499789,108160.0,108150.0,0.30157826]
[1750099974545,1.35424345,108160.0,108150.0,0.27384057]
[1750099975183,1.44114754,108160.0,108150.0,0.27384057]
[1750099975396,1.44114754,108160.0,108150.0,0.28308655]
[1750099975822,1.44114754,108160.0,108150.0,0.29233245]
[1750099976256,1.44114754,108160.0,108150.0,0.25361245]
[1750099976461,1.44114754,108160.0,108150.0,0.29233245]
[1750099976886,1.34499832,108160.0,108150.0,0.29233245]
[1750099977539,1.34499832,108160.0,108150.0,0.28308655]
[1750099977974,1.34499832,108160.0,108150.0,0.29233245]
[1750099979067,1.15084152,108160.0,108150.0,0.30157826]
[1750099979528,1.34499832,108160.0,108150.0,0.30157826]
[1750099979772,1.34499832,108160.0,108150.0,0.28308655]
[1750099980183,1.34499832,108160.0,108150.0,0.29233245]
[1750099980658,1.16008708,108160.0,108150.0,0.30063355]
[1750099980873,1.34499832,108160.0,108150.0,0.30063355]
[1750099981545,1.34499832,108160.0,108150.0,0.29138774]
[1750099983100,1.34499832,108160.0,108150.0,0.30063355]
[1750099983323,0.61259261,108160.0,108150.0,0.30063355]
[1750099983550,0.44324176,108160.0,108150.0,0.30063355]
[1750099983767,0.60276655,108160.0,108150.0,0.30063355]
[1750099984004,0.46173176,108160.0,108150.0,0.30063355]
[1750099984228,0.99073503,108160.0,108150.0,0.30063355]
[1750099984461,0.98148981,108160.0,108150.0,0.30063355]
[1750099984892,0.45248663,108160.0,108150.0,0.30063355]
[1750099985125,0.98148981,108160.0,108150.0,0.30063355]
[1750099986054,0.99073511,108160.0,108150.0,0.30063355]
[1750099986509,0.98148981,108160.0,108150.0,0.30063355]
[1750099986966,1.13176981,108160.0,108150.0,0.30063355]
[1750099987190,1.14101511,108160.0,108150.0,0.30063355]
[1750099987646,1.13176981,108160.0,108150.0,0.30063355]
[1750099988547,1.14101503,108160.0,108150.0,0.30063355]
[1750099989482,1.12252468,108160.0,108150.0,0.30063355]
[1750099989700,0.007,108160.0,108150.0,0.30561355]
[1750099989905,0.007,108160.0,108150.0,0.8253716]
[1750099990321,0.007,108160.0,108150.0,0.9756116]
[1750099991213,0.007,108160.0,108150.0,0.45585355]
[1750099991435,0.007,108160.0,108150.0,0.9756116]
[1750099995448,0.007,108160.0,108150.0,2.08551141]
[1750099995898,0.007,108160.0,108150.0,2.42551141]
[1750099996525,0.004,108160.0,108150.0,2.42551141]
[1750099996937,0.004,108160.0,108150.0,2.42951141]
[1750099997148,1.07502275,108200.0,108190.0,0.21258792]
[1750099997356,1.16202254,108200.0,108190.0,0.28340792]
[1750099997810,1.17126451,108200.0,108190.0,0.26740792]
[1750099998204,1.16202254,108200.0,108190.0,0.28340792]
[1750099998458,1.17535162,108200.0,108190.0,0.28340792]
[1750099998664,1.18518707,108200.0,108190.0,0.28340792]
[1750099999326,1.18818707,108200.0,108190.0,0.28340792]
[1750099999539,1.17835162,108200.0,108190.0,0.28340792]
[1750099999746,0.84343696,108200.0,108190.0,0.28340792]
[1750099999952,1.36319501,108200.0,108190.0,0.25130792]
[1750100000163,1.36319501,108200.0,108190.0,0.24206552]
[1750100000389,1.35395372,108200.0,108190.0,0.25130809]
[1750100003939,1.20371372,108200.0,108190.0,0.24206552]
[1750100004172,1.20371372,108200.0,108180.0,0.25353523]
[1750100004173,0.03250727,108190.0,108180.0,0.25353523]
[1750100004396,0.01402222,108190.0,108180.0,0.29221523]
[1750100004631,0.02326462,108190.0,108180.0,0.29221523]
[1750100004862,0.54302267,108190.0,108180.0,0.29221523]
[1750100005084,0.54302258,108190.0,108180.0,0.29221523]
[1750100005315,0.53378027,108190.0,108180.0,0.29221523]
[1750100005524,0.52553805,108190.0,108180.0,0.29221523]
[1750100005730,0.53478036,108190.0,108180.0,0.29221523]
[1750100006281,0.52553805,108190.0,108180.0,0.29221523]
[1750100006506,0.53478036,108190.0,108180.0,0.29221523]
[1750100006738,0.54402284,108190.0,108180.0,0.29221523]
[1750100007190,0.54602284,108190.0,108180.0,0.29221523]
[1750100007633,0.01702231,108190.0,108180.0,0.25353523]
[1750100007851,0.53678036,108190.0,108180.0,0.29221523]
[1750100008161,0.54602276,108190.0,108180.0,0.29221523]
[1750100008343,0.53678036,108190.0,108180.0,0.29221523]
[1750100008967,0.53678036,108190.0,108180.0,0.25353523]
[1750100009189,0.53678036,108190.0,108180.0,0.29221523]
[1750100010662,0.52753805,108190.0,108180.0,0.29221523]
[1750100011358,0.53678027,108190.0,108180.0,0.29221523]
[1750100011598,0.52753805,108190.0,108180.0,0.29221523]
[1750100013476,0.00778,108190.0,108180.0,0.29221523]
[1750100013733,0.52753805,108190.0,108180.0,0.29221523]
[1750100013959,0.53678027,108190.0,108180.0,0.29221523]
[1750100015131,0.52753805,108190.0,108180.0,0.29221523]
[1750100015823,0.53678027,108190.0,108180.0,0.29221523]
[1750100016048,0.52753805,108190.0,108180.0,0.29221523]
[1750100017206,0.53678027,108190.0,108180.0,0.29221523]
[1750100018155,0.52753805,108190.0,108180.0,0.29221523]
[1750100018410,0.53678027,108190.0,108180.0,0.29221523]
[1750100019267,0.54602267,108190.0,108180.0,0.29221523]
[1750100019884,0.53678027,108190.0,108180.0,0.29221523]
[1750100020836,0.00778,108190.0,108180.0,0.29221523]
[1750100021298,0.53678027,108190.0,108180.0,0.29221523]
[1750100022918,0.52753805,108190.0,108180.0,0.29221523]
[1750100023369,0.53678036,108190.0,108180.0,0.29221523]
[1750100025034,0.53641437,108190.0,108180.0,0.29221523]
[1750100026358,0.01702222,108190.0,108180.0,0.29221523]
[1750100026567,0.00778,108190.0,108180.0,0.29221523]
[1750100026780,0.52717206,108190.0,108180.0,0.29221523]
[1750100026993,0.00778,108190.0,108180.0,0.29221523]
[1750100027217,0.53641437,108190.0,108180.0,0.29221523]
[1750100027734,0.52717206,108190.0,108180.0,0.29221523]
[1750100028029,0.53641437,108190.0,108180.0,0.29221523]
[1750100028237,0.52717206,108190.0,108180.0,0.29221523]
[1750100028666,0.00778,108190.0,108180.0,0.29221523]
[1750100028877,0.52717206,108190.0,108180.0,0.29221523]
[1750100030226,0.53641428,108190.0,108180.0,0.29221523]
[1750100030648,0.52717206,108190.0,108180.0,0.29221523]
[1750100032902,0.00778,108190.0,108180.0,0.29221523]
[1750100033107,0.52717206,108190.0,108180.0,0.29221523]
[1750100033328,0.003,108190.0,108180.0,1.33099935]
[1750100034224,0.003,108190.0,108180.0,0.77292729]
[1750100034441,0.003,108190.0,108180.0,0.25353523]
[1750100034653,0.003,108190.0,108180.0,0.44309523]
[1750100034654,0.52239206,108190.0,108180.0,0.44309523]
[1750100034863,0.52239206,108190.0,108180.0,0.25353523]
[1750100035093,0.64626872,108190.0,108180.0,0.25353523]
[1750100035335,0.01420308,108180.0,108170.0,0.39397697]
[1750100035545,1.0529872,108180.0,108170.0,0.43289697]
[1750100035754,0.54283839,108180.0,108170.0,0.44214167]
[1750100036177,0.53359514,108180.0,108170.0,0.44214167]
[1750100036635,1.06323045,108180.0,108170.0,0.44214167]
[1750100036854,1.0539872,108180.0,108170.0,0.44214167]
[1750100037077,0.53473241,108180.0,108170.0,0.44214167]
[1750100037297,0.53473241,108180.0,108170.0,0.44222167]
[1750100037521,0.72102188,108180.0,108170.0,0.22184167]
[1750100037727,0.7302653,108180.0,108170.0,0.41196167]
[1750100037944,0.65854435,108180.0,108170.0,0.26076167]
[1750100038157,0.65854435,108180.0,108170.0,0.41196167]
[1750100038345,0.65854435,108180.0,108170.0,0.37304167]
[1750100038591,0.65854435,108180.0,108170.0,0.41196167]
[1750100038805,0.64021733,108180.0,108170.0,0.41196167]
[1750100039016,0.64946067,108180.0,108170.0,0.44296167]
[1750100039233,0.64021733,108180.0,108170.0,0.44296167]
[1750100039442,0.64946058,108180.0,108170.0,0.44296167]
[1750100039653,0.64946067,108180.0,108170.0,0.44296167]
[1750100040375,0.62167109,108180.0,108170.0,0.44296167]
[1750100040604,0.63091417,108180.0,108170.0,0.44296167]
[1750100040822,0.63091417,108180.0,108170.0,0.44288167]
[1750100041160,0.10214176,108180.0,108170.0,0.44288167]
[1750100042015,0.09724176,108180.0,108170.0,0.44288167]
[1750100044707,0.62167109,108180.0,108170.0,0.44288167]
[1750100046541,0.62167109,108180.0,108170.0,0.25284167]
[1750100046745,0.63091417,108180.0,108170.0,0.44284167]
[1750100047103,0.62167109,108180.0,108170.0,0.44284167]
[1750100048334,0.63091417,108180.0,108170.0,0.44284167]
[1750100049345,0.64015742,108180.0,108170.0,0.44280167]
[1750100049556,0.64015742,108180.0,108170.0,0.41180167]
[1750100049766,0.63091417,108180.0,108170.0,0.41180167]
[1750100049976,0.63091417,108180.0,108170.0,0.42770167]
[1750100050189,0.63091417,108180.0,108170.0,0.44270167]
[1750100050323,0.64015742,108180.0,108170.0,0.44270167]
[1750100050875,0.64015742,108180.0,108170.0,0.25274167]
[1750100051059,0.64940076,108180.0,108170.0,0.44266167]
[1750100051265,0.64015742,108180.0,108170.0,0.44266167]
[1750100052417,0.64940093,108180.0,108170.0,0.25274167]
[1750100052618,0.64940084,108180.0,108170.0,0.44274167]
[1750100052843,0.64940084,108180.0,108170.0,0.42774167]
[1750100053058,0.64940084,108180.0,108170.0,0.22381414]
[1750100053059,1.55128867,108180.0,108170.0,0.22381414]
[1750100053282,1.88204542,108180.0,108170.0,0.23305884]
[1750100053503,0.24816816,108170.0,108160.0,0.19415663]
[1750100053721,0.86393925,108170.0,108160.0,0.24232185]
[1750100054184,0.84783925,108170.0,108160.0,0.26081202]
[1750100054626,0.84783925,108170.0,108160.0,0.27005698]
[1750100054627,0.85708353,108170.0,108160.0,0.27005698]
[1750100054866,0.67218939,108170.0,108160.0,0.27005698]
[1750100055083,0.87965713,108170.0,108160.0,0.26081202]
[1750100055514,0.85708353,108170.0,108160.0,0.26081202]
[1750100055788,1.21059523,108170.0,108160.0,0.23307663]
[1750100056019,1.21059523,108170.0,108160.0,0.24432193]
[1750100056245,1.20135078,108170.0,108160.0,0.24432193]
[1750100056438,1.20135078,108170.0,108160.0,0.25356715]
[1750100057244,1.2975,108170.0,108160.0,0.25356715]
[1750100058389,1.20135078,108170.0,108160.0,0.25356715]
[1750100059960,1.20135078,108170.0,108160.0,0.24432193]
[1750100063546,1.18535078,108170.0,108160.0,0.24432193]
[1750100064839,1.18535078,108170.0,108160.0,0.23507663]
[1750100065056,1.17610608,108170.0,108160.0,0.04092]
[1750100065277,1.2887553,108170.0,108160.0,0.04092]
[1750100065751,1.3165363,108170.0,108160.0,0.04092]
[1750100066432,1.3165363,108170.0,108160.0,0.002]
[1750100066433,1.22038708,108170.0,108160.0,0.002]
[1750100066875,1.22038708,108170.0,108160.0,0.04108]
[1750100067226,1.22038708,108170.0,108160.0,0.002]
[1750100067453,1.22038708,108170.0,108160.0,0.22599124]
[1750100067696,1.20388708,108170.0,108160.0,0.22599124]
[1750100068148,1.27756057,108170.0,108160.0,0.18691124]
[1750100068385,1.27756057,108170.0,108160.0,0.22599124]
[1750100068874,1.18788708,108170.0,108160.0,0.23523671]
[1750100069130,0.80078085,108170.0,108160.0,0.24448193]
[1750100069345,1.32031018,108170.0,108160.0,0.22599124]
[1750100069584,1.31106608,108170.0,108160.0,0.23523671]
[1750100069815,1.31106608,108170.0,108160.0,0.24448201]
[1750100070033,1.31106608,108170.0,108160.0,0.23523671]
[1750100070252,1.31106608,108170.0,108160.0,0.25372723]
[1750100070701,1.31130608,108170.0,108160.0,0.25372723]
[1750100071145,1.31130608,108170.0,108160.0,0.24448201]
[1750100072443,1.31134608,108170.0,108160.0,0.25372723]
[1750100073530,1.16010608,108170.0,108160.0,0.25372723]
[1750100073760,1.31126608,108170.0,108160.0,0.25372723]
[1750100076222,1.31122608,108170.0,108160.0,0.26297236]
[1750100076644,1.16010608,108170.0,108160.0,0.26297236]
[1750100076856,1.31122608,108170.0,108160.0,0.26297236]
[1750100077718,0.79169675,108170.0,108160.0,0.26297236]
[1750100077948,1.31122608,108170.0,108160.0,0.26297236]
[1750100078966,1.31122608,108170.0,108160.0,0.25372723]
[1750100079483,1.31122608,108170.0,108160.0,0.24448201]
[1750100080034,1.31122608,108170.0,108160.0,0.25372723]
[1750100080709,0.65906573,108170.0,108160.0,0.29467236]
[1750100080960,1.33883976,108170.0,108160.0,0.3039174]
[1750100082182,1.18783976,108170.0,108160.0,0.3039174]
[1750100082423,1.33883976,108170.0,108160.0,0.3039174]
[1750100082666,0.9888004,108170.0,108160.0,0.3039174]
[1750100082941,0.027781,108180.0,108170.0,0.21262722]
[1750100083193,0.53854869,108200.0,108190.0,0.24438792]
[1750100083442,0.68104879,108200.0,108190.0,0.2927104]
[1750100083698,0.82805661,108200.0,108190.0,0.2927104]
[1750100083950,0.65795866,108200.0,108190.0,0.2927104]
[1750100084212,0.1012881,108200.0,108190.0,0.81211087]
[1750100084667,0.11052947,108200.0,108190.0,0.4447504]
[1750100084895,0.1197711,108200.0,108190.0,0.4447504]
[1750100085148,0.11977101,108200.0,108190.0,0.4447504]
[1750100085362,0.12507032,108200.0,108190.0,0.4447504]
[1750100085584,0.13431195,108200.0,108190.0,0.4447504]
[1750100085800,0.13831195,108200.0,108190.0,0.4447504]
[1750100086024,0.14231186,108200.0,108190.0,0.4447504]
[1750100087014,0.15155357,108200.0,108190.0,0.4447504]
[1750100087456,0.14231186,108200.0,108190.0,0.4447504]
[1750100088155,0.15155357,108200.0,108190.0,0.4447504]
[1750100088373,0.14231186,108200.0,108190.0,0.4447504]
[1750100089048,0.14231178,108200.0,108190.0,0.4447504]
[1750100089265,0.13307032,108200.0,108190.0,0.4494204]
[1750100090824,0.14231186,108200.0,108190.0,0.4494204]
[1750100091265,0.13307032,108200.0,108190.0,0.4494204]
[1750100092647,0.14231186,108200.0,108190.0,0.4494204]
[1750100092873,0.13307032,108200.0,108190.0,0.4494204]
[1750100093086,0.14231186,108200.0,108190.0,0.4494204]
[1750100093515,0.01304634,108200.0,108190.0,0.51994897]
[1750100093769,0.01304634,108200.0,108190.0,0.96402981]
[1750100094240,0.01304634,108200.0,108190.0,0.4447504]
[1750100094467,0.00904634,108200.0,108190.0,0.4447504]
[1750100094898,0.00804634,108200.0,108190.0,0.4447504]
[1750100095187,0.01004634,108200.0,108190.0,0.4447504]
[1750100097313,0.01004634,108200.0,108190.0,0.4494204]
[1750100097935,0.01004634,108200.0,108190.0,0.96869981]
[1750100098579,0.01004634,108200.0,108190.0,1.46259981]
[1750100099217,0.01004634,108200.0,108190.0,1.03956216]
[1750100099440,0.01004634,108200.0,108190.0,1.89884157]
[1750100100354,0.01004634,108200.0,108190.0,1.45476073]
[1750100100584,0.00704634,108200.0,108190.0,1.18844216]
[1750100100808,0.00704634,108200.0,108190.0,1.38380216]
[1750100100809,0.00504634,108200.0,108190.0,1.38380216]
[1750100101030,0.00504634,108200.0,108190.0,0.89554216]
[1750100101268,0.00504634,108200.0,108190.0,0.4954604]
[1750100101500,0.00504634,108200.0,108190.0,1.16929981]
[1750100101731,0.00504634,108200.0,108190.0,0.4944604]
[1750100101975,0.00504634,108200.0,108190.0,0.2536304]
[1750100102197,0.00504634,108200.0,108190.0,0.6484304]
[1750100102401,0.00504634,108200.0,108190.0,0.4509104]
[1750100102650,0.00504634,108200.0,108190.0,0.6473904]
[1750100103497,0.01428771,108200.0,108190.0,0.6473904]
[1750100103719,0.00504634,108200.0,108190.0,0.4489104]
[1750100103939,0.01428771,108200.0,108190.0,0.6453904]
[1750100104148,0.01926771,108200.0,108190.0,0.6463904]
[1750100104574,0.02850925,108200.0,108190.0,0.6463904]
[1750100104785,0.01926771,108200.0,108190.0,0.6463904]
[1750100105644,0.01002634,108200.0,108190.0,0.6463904]
[1750100105857,0.00504634,108200.0,108190.0,0.6463904]
[1750100107374,0.00504634,108200.0,108190.0,0.6509404]
[1750100108474,0.00504634,108200.0,108190.0,0.6507004]
[1750100108907,0.01428771,108200.0,108190.0,0.6461504]
[1750100109130,0.00504634,108200.0,108190.0,0.6461504]
[1750100110946,0.00504634,108200.0,108190.0,0.6507004]
[1750100115643,0.00504634,108200.0,108190.0,1.16542981]
[1750100116073,0.00504634,108200.0,108190.0,1.38151014]
[1750100116292,0.00504634,108200.0,108190.0,0.78703216]
[1750100116514,0.00504634,108200.0,108190.0,1.46167157]
[1750100117442,0.00504634,108200.0,108190.0,1.46622157]
[1750100117670,0.00504634,108200.0,108190.0,1.26622157]
[1750100117895,0.00504634,108200.0,108190.0,1.56012157]
[1750100118169,0.00504634,108200.0,108190.0,1.56020157]
[1750100120933,0.00504634,108200.0,108190.0,1.04092216]
[1750100121164,0.00504634,108200.0,108190.0,1.56020157]
[1750100121378,0.00504634,108200.0,108190.0,1.04092216]
[1750100121595,0.00504634,108200.0,108190.0,1.36388157]
[1750100121812,0.00504634,108200.0,108190.0,1.56040157]
[1750100123770,0.00504634,108200.0,108190.0,1.76040157]
[1750100124218,0.00504634,108200.0,108190.0,2.10040157]
[1750100125866,0.00504634,108200.0,108190.0,2.12816157]
[1750100126322,0.00504634,108200.0,108190.0,2.4018275]
[1750100127446,0.00504634,108200.0,108190.0,2.92110691]
[1750100127669,0.00504634,108200.0,108190.0,2.94110691]
[1750100127883,0.00504634,108200.0,108190.0,2.4218275]
[1750100129674,0.00504634,108200.0,108190.0,1.90254809]
[1750100129898,0.00504634,108200.0,108190.0,2.4230675]
[1750100131049,0.00504634,108200.0,108190.0,2.2253075]
[1750100131282,0.00504634,108200.0,108190.0,2.4230675]
[1750100132512,0.00504634,108200.0,108190.0,2.34940157]
[1750100132962,0.00504634,108200.0,108190.0,2.4230675]